Cogmind - Beta 9.2 @@@ ROGUE MODE // 2019.12.02 @ 14:33:10 Player: GammaGradiation Result: Destroyed by D-53 Grenadier with Mini Grenade Launcher Performance ------------- Evolutions (1) 500 Regions Visited (3) 600 Robots Destroyed (14) 70 Value Destroyed (251) 251 Prototype IDs (2) 40 Alien Tech Used (0) 0 Bonus (0) 0 TOTAL SCORE: 1461 Bonus ------- None Cogmind --------- Core Integrity 0/400 Matter 213/300 Energy 98/100 System Corruption 1% Temperature Cool (0) Movement Core (100) Ox1 Location -9/Mines Parts ------- > --- POWER (1) -------- (None) > --- PROPULSION (3) --- (None) > --- UTILITY (3) ------ Small Storage Unit > --- WEAPON (2) ------- (None) > --- INVENTORY (6) ---- Light Ion Engine Medium Battery (200) Power Shielding Integration Mediator Mini Grenade Launcher Maul Peak State ------------ > --- POWER ------------ Cooled Ion Engine > --- PROPULSION ------- Flight Unit Flight Unit Flight Unit > --- UTILITY ---------- Small Storage Unit Improved Terrain Scanner Integration Mediator > --- WEAPON ----------- (None) > --- INVENTORY -------- Light Ion Engine Medium Battery Sensor Array Shotgun Maul [Rating: 11] Favorites ----------- Power Light Ion Engine Engine Light Ion Engine Propulsion Flight Unit Flight Unit Flight Unit Utility Sensor Array Device Sensor Array Storage Small Storage Unit Processor Seismic Analyzer Weapon Small Laser Energy Gun Small Laser Ballistic Gun Assault Rifle Launcher Mini Grenade Launcher Special Melee Weapon Datajack Build | -11 -10 -9 -9 ------- Run | Scr Mat Mat Min Slots Evolved 2 | . . 2 . Power . | . . . . Propulsion 1 | . . 1 . Utility 1 | . . 1 . Weapon . | . . . . Parts Attached 30 | 4 6 17 3 Power 7 | 1 . 5 1 Engine 7 | 1 . 5 1 Core . | . . . . Reactor . | . . . . Propulsion 6 | . 2 2 2 Treads . | . . . . Leg . | . . . . Wheel . | . . . . Hover . | . . . . Flight 6 | . 2 2 2 Utility 8 | . 3 5 . Device 4 | . 1 3 . Storage 3 | . 1 2 . Processor 1 | . 1 . . Hackware . | . . . . Protection . | . . . . Artifact . | . . . . Weapon 9 | 3 1 5 . Energy Gun 2 | 1 1 . . Energy Cannon . | . . . . Ballistic Gun 4 | 2 . 2 . Ballistic Cannon . | . . . . Launcher 2 | . . 2 . Special Weapon . | . . . . Impact Weapon . | . . . . Slashing Weapon . | . . . . Piercing Weapon . | . . . . Special Melee Weapon 1 | . . 1 . Unidentified Prototypes 2 | . . 2 . Parts Lost 15 | . . 11 4 Power 2 | . . 1 1 Propulsion 6 | . . 4 2 Utility 2 | . . 1 1 Weapon 5 | . . 5 . Highest Loss Streak 8 | . . 8 4 Average Slot Usage (%) 59 | . 45 71 51 Engine 5 | . . 8 7 Flight 17 | . 3 28 18 Device 12 | . 7 16 11 Storage 7 | . 1 11 11 Processor 1 | . 4 . . Energy Gun 11 | . 25 2 . Ballistic Gun 1 | . 2 1 . Launcher 1 | . . 1 3 Naked Turns . | . . . . Heaviest Build 14 | 4 11 14 9 Greatest Support 12 | 3 8 12 8 Greatest Overweight (x) 2 | 1 1 2 1 Average Overweight (x) . | . . . . Largest Inventory Capacity 8 | 4 8 8 6 Average Capacity 5 | 4 4 5 6 Most Carried 6 | 4 4 6 6 Average Carried 4 | 2 3 3 5 Final Capacity 8 | 4 8 6 6 Final Carried 6 | 4 4 4 6 Class Distribution -------------------- 100% | Mutant Dominant Class ---------------- Mutant | -10/Materials Mutant | -9/Materials Mutant | -9/Mines Resources | -11 -10 -9 -9 ----------- Run | Scr Mat Mat Min Matter Collected 438 | 235 27 35 141 Remotely . | . . . . Salvage Created 179 | . 96 73 10 Parts 17 | . 3 9 5 Haulers Intercepted . | . . . . Recyclers Shooed . | . . . . Parts Field Recycled . | . . . . Retrieved Matter . | . . . . Parts Self-Destructed . | . . . . Prevented . | . . . . Kills | -11 -10 -9 -9 ------- Run | Scr Mat Mat Min Combat Hostiles Destroyed 13 | . 2 7 4 Guns 4 | . 2 2 . AOE 9 | . . 5 4 Classes Destroyed 4 | . 1 3 . Worker 1 | . . 1 . Swarmer 9 | . . 5 4 Grunt 3 | . 2 1 . Sentry 1 | . . 1 . Best Kill Streak 6 | . 1 6 4 Combat Bots Only 5 | . 1 5 4 Max Kills in Single Turn 3 | . 1 3 2 Gunslinging . | . . . . Exploded 2 | . . 2 2 Melee . | . . . . Uniques/NPCs Destroyed . | . . . . Combat | -11 -10 -9 -9 -------- Run | Scr Mat Mat Min Damage Taken 1050 | . 116 711 223 Core 437 | . 17 245 175 Absorbed by Shields . | . . . . Core Remaining (%) 96 | 100 93 . . Volleys Fired 28 | . 13 13 2 Largest 2 | . 2 2 1 Hottest 80 | . 80 80 30 Shots Fired 42 | . 26 14 2 Gun 34 | . 26 8 . Cannon . | . . . . Launcher 8 | . . 6 2 Special . | . . . . Kinetic 8 | . 4 4 . Thermal 26 | . 22 4 . Explosive 8 | . . 6 2 Electromagnetic . | . . . . Robot Hit Streak 6 | . 6 4 1 Robot Miss Streak 5 | . 5 3 1 Penetration Max . | . . . . Secondary Targets . | . . . . Shots Hit Robots 22 | . 12 9 1 Core Hits 23 | . 6 13 4 Critical Hits . | . . . . Critical Kills . | . . . . Critical Parts Destroyed . | . . . . Melee Attacks 2 | . . 2 . Impact . | . . . . Slashing . | . . . . Piercing . | . . . . Sneak Attacks . | . . . . Combat Hostiles . | . . . . Follow-up Attacks . | . . . . Damage Inflicted 979 | . 167 510 302 Guns 219 | . 167 52 . Cannons . | . . . . Explosions 760 | . . 458 302 Melee . | . . . . Ramming . | . . . . Kinetic 51 | . 21 30 . Thermal 168 | . 146 22 . Explosive 760 | . . 458 302 Electromagnetic . | . . . . Impact . | . . . . Slashing . | . . . . Piercing . | . . . . Highest Corruption 2 | . 2 1 1 Average Corruption 1 | . 2 1 1 Corruption Purged . | . . . . Overload Shots . | . . . . Overflow Damage 12 | . . 12 . Projectiles . | . . . . Explosions 12 | . . 12 . Melee . | . . . . Knockbacks . | . . . . Impact . | . . . . Kinetic . | . . . . Secondary . | . . . . Self-Inflicted Damage 48 | . . 48 . Shots 3 | . . 3 . Rammed . | . . . . Targets Rammed . | . . . . Kicked . | . . . . Crushed . | . . . . Highest Temperature 61 | . 61 24 . Average Temperature 13 | . 15 7 . Received Heat Transfer 267 | . 66 201 . Siege Activations . | . . . . Robots Corrupted . | . . . . Combat Hostiles . | . . . . Parts Fried . | . . . . Impact Corruptions . | . . . . Robots Melted . | . . . . Combat Hostiles . | . . . . Parts Melted . | . . . . Heat Transferred 375 | . 325 50 . Parts Sabotaged . | . . . . Parts Stolen . | . . . . Parts Stripped . | . . . . Power Chain Reactions . | . . . . Missiles Intercepted . | . . . . Alert | -11 -10 -9 -9 ------- Run | Scr Mat Mat Min Peak Influence 383 | . 383 310 207 Average Influence 146 | . 98 186 203 Maximum Alert Level 1 | . 1 1 1 Low Security (%) 73 | 100 90 71 7 Level 1 26 | . 9 28 92 Level 2 . | . . . . Level 3 . | . . . . Level 4 . | . . . . Level 5 . | . . . . High Security . | . . . . Max Security . | . . . . Squads Dispatched 1 | . . 1 . Investigation . | . . . . Extermination . | . . . . Reinforcement 1 | . . 1 . Assault . | . . . . Garrison . | . . . . Intercept . | . . . . Construction Impeded . | . . . . Haulers Reinforced . | . . . . Stealth | -11 -10 -9 -9 --------- Run | Scr Mat Mat Min Distress Signals 7 | . 2 5 . Communications Jammed . | . . . . Distress Signals . | . . . . Times Spotted 41 | . 8 22 11 Peak Tracking Total 11 | . 4 9 11 Tactical Retreats 4 | . 1 3 . Traps | -11 -10 -9 -9 ------- Run | Scr Mat Mat Min Traps Triggered 1 | . 1 . . Indirectly . | . . . . Trap Hack Attempts . | . . . . Triggered . | . . . . Disarmed . | . . . . Reprogrammed . | . . . . Reused . | . . . . Traps Extracted . | . . . . Installed . | . . . . Triggered . | . . . . Machines | -11 -10 -9 -9 ---------- Run | Scr Mat Mat Min Machines Disabled . | . . . . Max in Single Turn . | . . . . Machines Sabotaged . | . . . . Garrisons Compromised . | . . . . Overloaded Fab Kills . | . . . . Fab Network Shutdowns . | . . . . Hacking | -11 -10 -9 -9 --------- Run | Scr Mat Mat Min Machines Accessed 9 | . 6 3 . Terminals 9 | . 6 3 . Fabricators . | . . . . Repair Stations . | . . . . Recycling Units . | . . . . Scanalyzers . | . . . . Garrison Access . | . . . . Total Hacks 23 | . 14 9 . Successful 5 | . 3 2 . Failed 18 | . 11 7 . Catastrophic 2 | . 1 1 . Database Lockouts . | . . . . Manual 14 | . 10 4 . Terminals 23 | . 14 9 . Fabricators . | . . . . Repair Stations . | . . . . Recycling Units . | . . . . Scanalyzers . | . . . . Garrison Access . | . . . . Terminal Hacks 1 | . 1 . . Locate Traps 1 | . 1 . . Fabricator Hacks . | . . . . Repair Station Hacks . | . . . . Recycling Unit Hacks . | . . . . Scanalyzer . | . . . . Garrison Access Hacks . | . . . . Unauthorized Hacks 17 | . 11 6 . Terminals 4 | . 2 2 . Track 2 | . 1 1 . Operators 2 | . 1 1 . Fabricators . | . . . . Repair Stations . | . . . . Recycling Units . | . . . . Scanalyzers . | . . . . Garrison Access . | . . . . Data Cores Recovered . | . . . . Used . | . . . . Hacking Detections 9 | . 6 3 . Full Trace Events 1 | . . 1 . Feedback Events 1 | . . 1 . Corruption 1 | . . 1 . Feedback Blocked . | . . . . Robot Schematics Acquired . | . . . . Robots Built . | . . . . Matter . | . . . . Time . | . . . . Total Robot Build Rating . | . . . . Part Schematics Acquired . | . . . . Parts Built . | . . . . Matter . | . . . . Time . | . . . . Total Part Build Rating . | . . . . Parts Repaired . | . . . . Time . | . . . . Parts Recycled . | . . . . Recycled Matter . | . . . . Retrieved Matter . | . . . . Retrieved Components . | . . . . Parts Scanalyzed . | . . . . Part Schematics Acquired . | . . . . Parts Damaged . | . . . . Bothacking | -11 -10 -9 -9 ------------ Run | Scr Mat Mat Min Used RIF Installer . | . . . . Robots Hacked 1 | . . 1 . Non-combat . | . . . . Combat 1 | . . 1 . Robot Hacks Applied 1 | . . 1 . parse_system 1 | . . 1 . Relay Couplers Released . | . . . . Robots Rewired . | . . . . Allies Hacked . | . . . . Hacks Repelled . | . . . . Allies | -11 -10 -9 -9 -------- Run | Scr Mat Mat Min Total Allies 2 | . . . 2 Largest Group 2 | . . . 2 Highest-Rated Group 45 | . . . 45 Highest-Rated Ally 31 | . . . 31 Total Orders . | . . . . Ally Attacks . | . . . . Total Damage . | . . . . Kills . | . . . . Allies Corrupted . | . . . . Allies Melted . | . . . . Intel | -11 -10 -9 -9 ------- Run | Scr Mat Mat Min Robot Analysis Total . | . . . . Derelict Logs Recovered . | . . . . Drone Launches . | . . . . Drone Recoveries . | . . . . Exploration | -11 -10 -9 -9 ------------- Run | Scr Mat Mat Min Turns Passed 677 | 32 252 322 71 Spaces Moved 924 | 37 329 411 147 Core 362 | 37 304 15 6 Treads . | . . . . Legs . | . . . . Wheels . | . . . . Hover . | . . . . Flight 562 | . 25 396 141 Fastest Speed 34 | 50 37 34 37 Average Speed 48 | 59 54 44 41 Slowest Speed 200 | 100 117 200 120 Overloaded Moves . | . . . . Propulsion Burnouts . | . . . . Robots Hopped 9 | . . 9 . Cave-ins Triggered . | . . . . Exploration Rate (%) 31 | 3 54 41 29 Regions Visited 3 Branch Regions 1 Pre-discovered Areas . | . . . . Known Exits Taken . | . . . . Unknown Exits Taken 3 | 1 1 1 . Scrap Searched 2 | . . . 2 Spaces Dug . | . . . . Terrain Destroyed 37 | . . 26 11 Melee . | . . . . Projectile . | . . . . AOE 37 | . . 26 11 Actions | -11 -10 -9 -9 --------- Run | Scr Mat Mat Min Total 1102 | 46 376 526 154 Wait 100 | . 20 80 . Move 905 | 36 328 394 147 Hop 7 | . . 7 . Pick Up 12 | 4 4 3 1 Fast Attach 19 | 3 5 8 3 Attach 10 | 1 1 8 . Detach 10 | 1 1 7 1 Swap 1 | . . 1 . Drop 8 | 1 4 3 . Fire 28 | . 13 13 2 Melee 2 | . . 2 . Ram . | . . . . Kick . | . . . . Crush . | . . . . Escape Stasis . | . . . . Rewire . | . . . . Trap . | . . . . Miscellaneous . | . . . . Route ------- -11/Scrapyard -10/Materials -9/Materials -9/Mines (discovered 1 exit: [*Mat]) History --------- Turn | Location | Event 5 | -11/Scrapyard | Discovered new exit (range 16) 33 | -11/Scrapyard | Entered Materials 173 | -10/Materials | Discovered new exit (range 14) 285 | -10/Materials | Entered another Materials area 285 | -9/Materials | Evolved 2 slots: Propulsion x1, Utility x1 322 | -9/Materials | Build established: Mutant 391 | -9/Materials | Lost 3 parts (3w) 565 | -9/Materials | Discovered new exit (range 13) 583 | -9/Materials | Core integrity fell below 50% 607 | -9/Materials | Entered Mines 610 | -9/Mines | Met a Derelict bent on vengeance 629 | -9/Mines | Discovered new exit (range 11) 636 | -9/Mines | Lost 8 parts (1p4n1u2w) 661 | -9/Mines | Assembled infested the area 666 | -9/Mines | Assisted by a Guerilla fighting off Assembled 678 | -9/Mines | Destroyed by D-53 Grenadier with Mini Grenade Launcher Last Messages --------------- 00636_ Acquired 25 matter. 00637_ Acquired 48 matter. 00645_ A pair of derelicts emerge from the shadows: "We're, um, lost. You wouldn't happen to know the way out of here, would you?" 00661_ ALERT: Infestation in the mines, dispatching Demolisher response squad. 00671_ LB-U4C(h): "I'll hold them off! Go on ahead or try to find another way!" 00675_ HV Slug penetrates as-44114. 00675_ as-44114 knocked back. 00676_ C-30 ARC bursts open, deploying its payload. 00676_ D-53 Grenadier unfolds itself. 00676_ K-01 Serf destroyed. 00676_ Flight Unit destroyed. 00676_ Imp. Terrain Scanner destroyed. 00676_ Lgt. Ion Engine destroyed. 00676_ Flight Unit destroyed. 00676_ U-05 Engineer lays Concrete. 00676_ K-01 Serf collects debris. 00677_ U-05 Engineer lays Concrete. Map ----- +----------------------------------------------------+ | ?????????????????????????????????????????????????? | | ?????????????????????????????????????????????????? | | ?????????????????????????????????????????????????? | | ?????????????????????????????????????????????????? | | ?????????????????????????????????????????????????? | | ?????????????????????????????????????????????????? | | ?????????????????????????????????????????????????? | | ?????????????????????????????????????????????????? | | ?????????????????????????????????????????????????? | | ?????????????????????????????????????????????????? | | ?????????????????????????????????????????????????? | | ??????????????????????????? ?????????????????????? | | ??????????????????????????? ?????????????????????? | | ??????????????????????????? ?????????????????????? | | ????????????????????????### ?????????????????????? | | ????????????????????????# ?????????????????????? | | ????????????????????????# ?? ??????????????????? | | ????????????????????????# #?????????????????????? | | ?????????????????????#?## #?????????????????????? | | ?????????????????????# ##k ####??????????????????? | | ?????????????????????# # ##?????????????????? | | ??????????????????????### #####?????????????? | | ?????????????????????## u #############?? | | ???????????????????### = < | | ?????????????????????# d ## ##### ###?? | | ?????????????????????# @ % ## ##### #???? | | ?????????????????????# d ## ## ##??? | | ?????????????????????# ### ##?? | | ?????????????????????# #### #?? | | ????????????????????## # ##??## #?? | | ???????????????????## ###### #????## #?? | | ???????????????##### ##????# #?????# #?? | | ??????????????## ##???#] ######## #?? | | ??????????????# ##### | #?? | | ??????????????# # #?? | | ?????????????## #### #### #### ##?? | | ??????????#?## ####### #??? #??# ???####??? | | ????????????# """ ##?????# #??? #### #???#????? | | ??####### ### """ ######## #### ### ##???????? | | """ ## ##??????? | | #??#?#?? | | ??????######## ##### #???????? | | ?????????????### #???## ###???????? | | ???????????????## ##????## ##?????????? | | ????????????????# ##??????# #??????????? | | ???????????#????# ##???????# #??????????? | | ???????????###### #??????#?# #??????????? | | ??????????## ## ####?????# ##??????????? | | ?????????## ####### ##???????????? | | ?????????# ##????????????? | +----------------------------------------------------+ Best States ------------- Heat Dissipation 28 Energy Generation 10 Energy Capacity 325 Matter Stores 300 Matter Capacity 300 Sight Range 16 Robot Scan Range 10 Terrain Scan Range 16 Terrain Scan Density 60 Evasion (%) 63 Item Schematics ----------------- None Robot Schematics ------------------ None Fabricated ------------ Nothing Alien Tech Used ----------------- None Achievements -------------- None Challenges ------------ None Game ------ Seed CouplerHeatSabre Manual? 0 Play Time 00:19:21 Cumulative 58.5 hours Start 2019.12.02 @ 14:11:21 End 2019.12.02 @ 14:33:10 Sessions 1 Manual Loads 0 Difficulty Rogue Special Mode None Game No. 45 Rogue 45 Adventurer 0 Explorer 0 Win Type - Total 0 Types 0/0/0/0/0/0/0 Lore% 47 Gallery% 47 Achievement% 36 Wizard Run 0 Options --------- ASCII 1 Keyboard 1 Movement Numpad Keybinds 0 Fullscreen 1 Font 18/SmallcapsGlow Map View 76x50 Tactical HUD 1 Map Filters NONE Filters NONE Steam 0 RUN: 829f677e-eb98-45f6-bd35-973e30bd8046